[Event "Early-Titled-Tuesday-Blitz-February-20-2024"]
[Site "Chess.com"]
[Date "2024.02.20"]
[Round "7"]
[White "gpsji27"]
[Black "aistrel"]
[Result "1-0"]
[WhiteElo "2330"]
[BlackElo "2516"]
[TimeControl "180+1"]
[EndTime "9:16:14 PST"]
[Termination "gpsji27 won by resignation"]

1. d4 {[%clk 0:02:54.2]} 1... d5 {[%clk 0:02:57.1]} 2. Nf3 {[%clk 0:02:54.5]}
2... c6 {[%clk 0:02:53.2]} 3. c4 {[%clk 0:02:51.8]} 3... e6 {[%clk 0:02:53.4]}
4. Nc3 {[%clk 0:02:50.9]} 4... dxc4 {[%clk 0:02:53.6]} 5. e4 {[%clk 0:02:47.6]}
5... b5 {[%clk 0:02:53.1]} 6. a4 {[%clk 0:02:47.7]} 6... Bb4 {[%clk 0:02:52.3]}
7. axb5 {[%clk 0:02:41.8]} 7... cxb5 {[%clk 0:02:51.6]} 8. Bd2 {[%clk
0:02:05.1]} 8... Bxc3 {[%clk 0:02:48.7]} 9. Bxc3 {[%clk 0:02:05.4]} 9... Qe7
{[%clk 0:02:48.9]} 10. Qd2 {[%clk 0:02:03.5]} 10... Nc6 {[%clk 0:02:47.6]} 11.
d5 {[%clk 0:02:01.3]} 11... exd5 {[%clk 0:02:44.2]} 12. Qxd5 {[%clk 0:02:02.2]}
12... Nb4 {[%clk 0:02:38]} 13. Qxb5+ {[%clk 0:01:59.9]} 13... Bd7 {[%clk
0:02:33.9]} 14. Qxb4 {[%clk 0:01:59.4]} 14... Qxe4+ {[%clk 0:02:34.5]} 15. Be2
{[%clk 0:01:59.1]} 15... Rc8 {[%clk 0:02:28.9]} 16. Ne5 {[%clk 0:01:43.2]} 16...
Nf6 {[%clk 0:02:24.1]} 17. O-O {[%clk 0:01:27.5]} 17... Qxe2 {[%clk 0:02:12.7]}
18. Rfe1 {[%clk 0:01:25.2]} 18... Nd5 {[%clk 0:02:11.3]} 19. Rxe2 {[%clk
0:01:13.9]} 19... Nxb4 {[%clk 0:02:11.8]} 20. Bxb4 {[%clk 0:01:14.8]} 20... Be6
{[%clk 0:02:12.1]} 21. Rxa7 {[%clk 0:01:13.6]} 21... Rb8 {[%clk 0:02:11.1]} 22.
Re7+ {[%clk 0:01:13.2]} 22... Kd8 {[%clk 0:02:11]} 23. Nc6+ {[%clk 0:01:13.2]}
23... Kc8 {[%clk 0:02:11.5]} 24. Nxb8 {[%clk 0:01:11]} 24... Kxb8 {[%clk
0:02:12.4]} 25. g3 {[%clk 0:01:10.6]} 1-0

[Event "Early-Titled-Tuesday-Blitz-February-20-2024"]
[Site "Chess.com"]
[Date "2024.02.20"]
[Round "7"]
[White "TitarovVasiliYouTube"]
[Black "yuriydovzik"]
[Result "1-0"]
[WhiteElo "2528"]
[BlackElo "2160"]
[TimeControl "180+1"]
[EndTime "9:16:26 PST"]
[Termination "TitarovVasiliYouTube won by resignation"]

1. c4 {[%clk 0:03:00.9]} 1... Nf6 {[%clk 0:02:49.1]} 2. Nc3 {[%clk 0:03:00.1]}
2... e5 {[%clk 0:02:48.1]} 3. e3 {[%clk 0:02:58.3]} 3... Nc6 {[%clk 0:02:43.7]}
4. Nf3 {[%clk 0:02:58.5]} 4... d5 {[%clk 0:02:40.2]} 5. cxd5 {[%clk 0:02:59.4]}
5... Nxd5 {[%clk 0:02:39.7]} 6. Bb5 {[%clk 0:02:58.8]} 6... Nxc3 {[%clk
0:02:38.8]} 7. bxc3 {[%clk 0:02:59.7]} 7... Bd7 {[%clk 0:02:31.9]} 8. O-O {[%clk
0:02:58]} 8... Bd6 {[%clk 0:02:28.9]} 9. d4 {[%clk 0:02:56.7]} 9... exd4 {[%clk
0:02:23.9]} 10. cxd4 {[%clk 0:02:57.3]} 10... O-O {[%clk 0:02:21.4]} 11. e4
{[%clk 0:02:56.9]} 11... Bg4 {[%clk 0:02:11.4]} 12. Be3 {[%clk 0:02:50.1]} 12...
a6 {[%clk 0:01:59.1]} 13. Be2 {[%clk 0:02:48.8]} 13... Re8 {[%clk 0:01:51.9]}
14. e5 {[%clk 0:02:48.5]} 14... Bf8 {[%clk 0:01:51]} 15. Rc1 {[%clk 0:02:36.3]}
15... Qd7 {[%clk 0:01:48.7]} 16. h3 {[%clk 0:02:31.8]} 16... Bh5 {[%clk
0:01:45]} 17. Qb3 {[%clk 0:01:53.3]} 17... Rab8 {[%clk 0:01:39.3]} 18. Rfd1
{[%clk 0:01:52.7]} 18... b5 {[%clk 0:01:31]} 19. Qc2 {[%clk 0:01:46.6]} 19...
Rbc8 {[%clk 0:01:18.1]} 20. Qxc6 {[%clk 0:01:45.7]} 1-0

[Event "Early-Titled-Tuesday-Blitz-February-20-2024"]
[Site "Chess.com"]
[Date "2024.02.20"]
[Round "7"]
[White "Actuary44"]
[Black "Joachim100x"]
[Result "1-0"]
[WhiteElo "2512"]
[BlackElo "2291"]
[TimeControl "180+1"]
[EndTime "9:16:34 PST"]
[Termination "Actuary44 won by resignation"]

1. e4 {[%clk 0:03:00.9]} 1... c5 {[%clk 0:02:59.3]} 2. d4 {[%clk 0:03:01.1]}
2... cxd4 {[%clk 0:02:59]} 3. c3 {[%clk 0:03:02]} 3... Nf6 {[%clk 0:02:58.8]} 4.
Bd3 {[%clk 0:03:01.8]} 4... Nc6 {[%clk 0:02:55.8]} 5. f4 {[%clk 0:03:01.9]} 5...
e5 {[%clk 0:02:55.1]} 6. Nf3 {[%clk 0:03:02]} 6... d6 {[%clk 0:02:55]} 7. cxd4
{[%clk 0:03:01.3]} 7... Nxd4 {[%clk 0:02:54.6]} 8. Nxd4 {[%clk 0:03:01.5]} 8...
exd4 {[%clk 0:02:54.8]} 9. O-O {[%clk 0:03:02]} 9... Be7 {[%clk 0:02:54.5]} 10.
Kh1 {[%clk 0:02:54.4]} 10... O-O {[%clk 0:02:54.1]} 11. h3 {[%clk 0:02:52.8]}
11... d5 {[%clk 0:02:54.2]} 12. e5 {[%clk 0:02:53]} 12... Ne4 {[%clk 0:02:54.5]}
13. Qe1 {[%clk 0:02:53]} 13... Bh4 {[%clk 0:02:50.9]} 14. Qd1 {[%clk 0:02:47.6]}
14... Ng3+ {[%clk 0:02:49.6]} 15. Kh2 {[%clk 0:02:47.9]} 15... Nxf1+ {[%clk
0:02:49.7]} 16. Qxf1 {[%clk 0:02:48.8]} 16... f5 {[%clk 0:02:45.2]} 17. Nd2
{[%clk 0:02:41.2]} 17... Be6 {[%clk 0:02:44.4]} 18. Nf3 {[%clk 0:02:41.3]} 18...
Rc8 {[%clk 0:02:39.9]} 19. Nxd4 {[%clk 0:02:37.5]} 19... Qe7 {[%clk 0:02:30.8]}
20. g3 {[%clk 0:02:34.6]} 20... Bxg3+ {[%clk 0:02:12.4]} 21. Kxg3 {[%clk
0:02:35.5]} 21... g5 {[%clk 0:02:06.6]} 22. fxg5 {[%clk 0:02:30.4]} 22... f4+
{[%clk 0:02:06]} 23. Bxf4 {[%clk 0:02:28.6]} 23... Rxf4 {[%clk 0:01:57.1]} 24.
Qxf4 {[%clk 0:02:26.4]} 24... Rf8 {[%clk 0:01:57.3]} 25. Qh4 {[%clk 0:02:03.9]}
25... Rf7 {[%clk 0:01:57.1]} 26. Rf1 {[%clk 0:02:02.4]} 26... Rg7 {[%clk
0:01:54.9]} 27. g6 {[%clk 0:01:35.2]} 27... Qd7 {[%clk 0:01:41.8]} 28. Qf6
{[%clk 0:01:31.3]} 28... hxg6 {[%clk 0:01:41]} 29. Qxe6+ {[%clk 0:01:30.5]} 1-0

[Event "Early-Titled-Tuesday-Blitz-February-20-2024"]
[Site "Chess.com"]
[Date "2024.02.20"]
[Round "7"]
[White "Zhigalko_Sergei"]
[Black "HamedWafa4"]
[Result "1-0"]
[WhiteElo "2927"]
[BlackElo "2717"]
[TimeControl "180+1"]
[EndTime "9:17:15 PST"]
[Termination "Zhigalko_Sergei won by checkmate"]

1. e4 {[%clk 0:01:43.2]} 1... e5 {[%clk 0:02:57.4]} 2. Nf3 {[%clk 0:01:43.4]}
2... d6 {[%clk 0:02:57.3]} 3. d4 {[%clk 0:01:40.9]} 3... Nd7 {[%clk 0:02:57.7]}
4. Bc4 {[%clk 0:01:37.6]} 4... Ngf6 {[%clk 0:02:57.4]} 5. dxe5 {[%clk
0:01:16.6]} 5... Nxe4 {[%clk 0:02:40.7]} 6. Qd5 {[%clk 0:01:05.4]} 6... Qe7
{[%clk 0:02:31.3]} 7. Qxe4 {[%clk 0:00:30.9]} 7... dxe5 {[%clk 0:02:27.3]} 8.
O-O {[%clk 0:00:30.1]} 8... f6 {[%clk 0:02:10.4]} 9. Be3 {[%clk 0:00:30.2]} 9...
Nc5 {[%clk 0:02:09.8]} 10. Bxc5 {[%clk 0:00:30.4]} 10... Qxc5 {[%clk 0:02:10.7]}
11. Nc3 {[%clk 0:00:30.5]} 11... c6 {[%clk 0:02:09.9]} 12. Rad1 {[%clk
0:00:30.2]} 12... Bd7 {[%clk 0:02:09.5]} 13. Bf7+ {[%clk 0:00:28.8]} 13... Kxf7
{[%clk 0:02:06.5]} 14. Rxd7+ {[%clk 0:00:28.3]} 14... Be7 {[%clk 0:02:07.1]} 15.
Rxb7 {[%clk 0:00:28.5]} 15... Rab8 {[%clk 0:02:07.1]} 16. Rxb8 {[%clk
0:00:25.5]} 16... Rxb8 {[%clk 0:02:08]} 17. Qxh7 {[%clk 0:00:26]} 17... Rxb2
{[%clk 0:02:07.5]} 18. Na4 {[%clk 0:00:26.2]} 18... Qxc2 {[%clk 0:02:06.4]} 19.
Qh5+ {[%clk 0:00:25]} 19... Kf8 {[%clk 0:02:05.9]} 20. Nxb2 {[%clk 0:00:23.4]}
20... Qxb2 {[%clk 0:02:06.8]} 21. a4 {[%clk 0:00:20.7]} 21... c5 {[%clk
0:02:06.6]} 22. Nh4 {[%clk 0:00:20.8]} 22... Kg8 {[%clk 0:02:03.4]} 23. Qe8+
{[%clk 0:00:18.4]} 23... Bf8 {[%clk 0:02:02.3]} 24. Ng6 {[%clk 0:00:18.5]} 24...
Kh7 {[%clk 0:02:01.3]} 25. Nxf8+ {[%clk 0:00:18.7]} 25... Kh6 {[%clk 0:02:01.8]}
26. Qg6# {[%clk 0:00:18.7]} 1-0

[Event "Early-Titled-Tuesday-Blitz-February-20-2024"]
[Site "Chess.com"]
[Date "2024.02.20"]
[Round "7"]
[White "zajka-molotok"]
[Black "Kostya0705"]
[Result "1-0"]
[WhiteElo "2513"]
[BlackElo "2605"]
[TimeControl "180+1"]
[EndTime "9:17:16 PST"]
[Termination "zajka-molotok won by resignation"]

1. e4 {[%clk 0:02:56.3]} 1... c5 {[%clk 0:02:45.7]} 2. Nf3 {[%clk 0:02:55.4]}
2... e6 {[%clk 0:02:46]} 3. d4 {[%clk 0:02:53.8]} 3... cxd4 {[%clk 0:02:46.9]}
4. Nxd4 {[%clk 0:02:54.1]} 4... Nc6 {[%clk 0:02:47.5]} 5. Nc3 {[%clk 0:02:53.7]}
5... Qc7 {[%clk 0:02:47.7]} 6. g3 {[%clk 0:02:44.9]} 6... a6 {[%clk 0:02:38.3]}
7. Bg2 {[%clk 0:02:44.2]} 7... Nf6 {[%clk 0:02:34.1]} 8. O-O {[%clk 0:02:42.8]}
8... Nxd4 {[%clk 0:02:34.5]} 9. Qxd4 {[%clk 0:02:42.2]} 9... Bc5 {[%clk
0:02:34.7]} 10. Bf4 {[%clk 0:02:38.7]} 10... d6 {[%clk 0:02:32]} 11. Qd3 {[%clk
0:02:34.4]} 11... O-O {[%clk 0:02:25]} 12. Rad1 {[%clk 0:02:32.7]} 12... e5
{[%clk 0:01:43.5]} 13. Bg5 {[%clk 0:02:29.7]} 13... Be6 {[%clk 0:01:40.5]} 14.
Bxf6 {[%clk 0:02:29.1]} 14... gxf6 {[%clk 0:01:41.4]} 15. Nd5 {[%clk 0:02:24.8]}
15... Bxd5 {[%clk 0:01:41.4]} 16. Qxd5 {[%clk 0:02:25.7]} 16... Rac8 {[%clk
0:01:38.7]} 17. Bh3 {[%clk 0:02:25]} 17... Rcd8 {[%clk 0:01:37.9]} 18. Bf5
{[%clk 0:02:23.4]} 18... Kh8 {[%clk 0:01:38.4]} 19. c3 {[%clk 0:02:20.9]} 19...
Rg8 {[%clk 0:01:38.1]} 20. Kh1 {[%clk 0:02:16.4]} 20... Qb6 {[%clk 0:01:28.9]}
21. Qxf7 {[%clk 0:02:13.5]} 21... Rg7 {[%clk 0:01:23.2]} 22. Qxf6 {[%clk
0:02:13.1]} 22... Rg8 {[%clk 0:01:17.1]} 23. Rd2 {[%clk 0:02:10.4]} 23... Qb5
{[%clk 0:01:15.3]} 24. Kg2 {[%clk 0:02:04.9]} 24... Qc4 {[%clk 0:01:13.9]} 25.
Rfd1 {[%clk 0:01:49.2]} 25... b5 {[%clk 0:00:58.5]} 26. b4 {[%clk 0:01:46.9]}
26... Ba7 {[%clk 0:00:56]} 27. Rxd6 {[%clk 0:01:41.5]} 27... Qe2 {[%clk
0:00:55.4]} 28. R1d2 {[%clk 0:01:38.4]} 28... Qh5 {[%clk 0:00:52.7]} 29. Rd7
{[%clk 0:01:32.9]} 1-0

[Event "Early-Titled-Tuesday-Blitz-February-20-2024"]
[Site "Chess.com"]
[Date "2024.02.20"]
[Round "7"]
[White "dianamirza"]
[Black "cristiano78"]
[Result "1-0"]
[WhiteElo "1997"]
[BlackElo "2259"]
[TimeControl "180+1"]
[EndTime "9:17:25 PST"]
[Termination "dianamirza won by resignation"]

1. e4 {[%clk 0:03:00.9]} 1... c5 {[%clk 0:02:59.6]} 2. Nf3 {[%clk 0:03:00.3]}
2... d6 {[%clk 0:02:59.6]} 3. d4 {[%clk 0:02:57.4]} 3... cxd4 {[%clk 0:02:58.7]}
4. Nxd4 {[%clk 0:02:58.3]} 4... Nf6 {[%clk 0:02:58.3]} 5. Nc3 {[%clk 0:02:58.8]}
5... g6 {[%clk 0:02:58]} 6. Be3 {[%clk 0:02:59.2]} 6... Bg7 {[%clk 0:02:57.4]}
7. Qd2 {[%clk 0:02:59.9]} 7... O-O {[%clk 0:02:57.5]} 8. f3 {[%clk 0:02:59.8]}
8... Nc6 {[%clk 0:02:57.3]} 9. Bc4 {[%clk 0:03:00.1]} 9... Bd7 {[%clk
0:02:56.9]} 10. g4 {[%clk 0:03:00.2]} 10... Rc8 {[%clk 0:02:50.8]} 11. Bb3
{[%clk 0:02:59.8]} 11... Ne5 {[%clk 0:02:48.9]} 12. h4 {[%clk 0:02:57.4]} 12...
Rxc3 {[%clk 0:02:33.9]} 13. Qxc3 {[%clk 0:02:46]} 13... Nxf3+ {[%clk 0:02:19.8]}
14. Nxf3 {[%clk 0:02:27.6]} 14... Nxe4 {[%clk 0:02:19.5]} 15. Qd3 {[%clk
0:02:22.2]} 15... Bc6 {[%clk 0:02:12.5]} 16. Nd4 {[%clk 0:02:16]} 16... Nc5
{[%clk 0:02:10.6]} 17. Qf1 {[%clk 0:01:53.8]} 17... Bxh1 {[%clk 0:02:07.2]} 18.
Qxh1 {[%clk 0:01:54.7]} 18... Qa5+ {[%clk 0:02:03.4]} 19. Kd1 {[%clk 0:01:45.3]}
19... Nxb3 {[%clk 0:01:40]} 20. Nxb3 {[%clk 0:01:43.3]} 20... Qe5 {[%clk
0:01:38.9]} 21. Bd4 {[%clk 0:01:40.8]} 21... Qf4 {[%clk 0:01:38.4]} 22. Bxg7
{[%clk 0:01:24.9]} 22... Qxg4+ {[%clk 0:01:37.7]} 23. Kd2 {[%clk 0:01:17.7]}
23... Kxg7 {[%clk 0:01:34.8]} 24. Re1 {[%clk 0:01:15.3]} 24... e5 {[%clk
0:01:31.9]} 25. Qxb7 {[%clk 0:01:13.8]} 25... Qxh4 {[%clk 0:01:30.6]} 26. Qxa7
{[%clk 0:01:13.1]} 26... Qf4+ {[%clk 0:01:26.3]} 27. Qe3 {[%clk 0:01:09.5]}
27... Qxe3+ {[%clk 0:01:23.9]} 28. Rxe3 {[%clk 0:01:10.1]} 28... f5 {[%clk
0:01:24.4]} 29. a4 {[%clk 0:01:07]} 29... d5 {[%clk 0:01:23.1]} 30. Nc5 {[%clk
0:01:06.7]} 30... Kf6 {[%clk 0:01:21.8]} 31. Nd7+ {[%clk 0:01:06.3]} 31... Kf7
{[%clk 0:01:21.6]} 32. Nxf8 {[%clk 0:01:07.2]} 32... Kxf8 {[%clk 0:01:22.4]} 33.
Rxe5 {[%clk 0:01:07.7]} 1-0

[Event "Early-Titled-Tuesday-Blitz-February-20-2024"]
[Site "Chess.com"]
[Date "2024.02.20"]
[Round "7"]
[White "Chess4always"]
[Black "EdmundPlayer"]
[Result "0-1"]
[WhiteElo "1984"]
[BlackElo "2281"]
[TimeControl "180+1"]
[EndTime "9:17:30 PST"]
[Termination "EdmundPlayer won by resignation"]

1. d4 {[%clk 0:03:00.9]} 1... d5 {[%clk 0:02:56.2]} 2. Nf3 {[%clk 0:03:00.2]}
2... Nf6 {[%clk 0:02:55.2]} 3. Bf4 {[%clk 0:02:59.7]} 3... c5 {[%clk 0:02:54.5]}
4. c3 {[%clk 0:02:59.8]} 4... Nc6 {[%clk 0:02:44.8]} 5. e3 {[%clk 0:02:59.2]}
5... Qb6 {[%clk 0:02:44.2]} 6. Qb3 {[%clk 0:02:58.8]} 6... c4 {[%clk 0:02:43.8]}
7. Qxb6 {[%clk 0:02:58.7]} 7... axb6 {[%clk 0:02:44.2]} 8. Be2 {[%clk
0:02:59.6]} 8... b5 {[%clk 0:02:43.3]} 9. Nbd2 {[%clk 0:02:59.5]} 9... Bf5
{[%clk 0:02:41.8]} 10. a3 {[%clk 0:02:58.2]} 10... b4 {[%clk 0:02:40.8]} 11. O-O
{[%clk 0:02:59.1]} 11... bxa3 {[%clk 0:02:31]} 12. Rxa3 {[%clk 0:02:58.6]} 12...
Rxa3 {[%clk 0:02:30.5]} 13. bxa3 {[%clk 0:02:59.5]} 13... e6 {[%clk 0:02:30]}
14. a4 {[%clk 0:02:59.9]} 14... Ba3 {[%clk 0:02:24.7]} 15. Nh4 {[%clk
0:03:00.3]} 15... Bc2 {[%clk 0:02:18.5]} 16. Ra1 {[%clk 0:02:57.5]} 16... Be7
{[%clk 0:02:08.2]} 17. Nhf3 {[%clk 0:02:57.1]} 17... O-O {[%clk 0:01:53.2]} 18.
Ne5 {[%clk 0:02:55.1]} 18... Nxe5 {[%clk 0:01:48.3]} 19. Bxe5 {[%clk 0:02:56]}
19... Nd7 {[%clk 0:01:46.4]} 20. Bg3 {[%clk 0:02:48.4]} 20... Ra8 {[%clk
0:01:46.1]} 21. a5 {[%clk 0:02:46.6]} 21... Bd8 {[%clk 0:01:43.7]} 22. Ra2
{[%clk 0:02:37.1]} 22... Bg6 {[%clk 0:01:42]} 23. e4 {[%clk 0:02:30.9]} 23...
Rxa5 {[%clk 0:01:38.2]} 24. Rb2 {[%clk 0:02:29]} 24... b6 {[%clk 0:01:20.2]} 25.
exd5 {[%clk 0:02:26.7]} 25... exd5 {[%clk 0:01:19.9]} 26. Bg4 {[%clk 0:02:25.1]}
26... Nf6 {[%clk 0:01:16.9]} 27. Bf3 {[%clk 0:02:21.9]} 27... Ra1+ {[%clk
0:01:14]} 28. Nf1 {[%clk 0:02:20.6]} 28... Bd3 {[%clk 0:01:13.2]} 29. Re2 {[%clk
0:02:14]} 29... Ne4 {[%clk 0:01:01.8]} 30. Bf4 {[%clk 0:01:54.6]} 30... Bxe2
{[%clk 0:00:57.2]} 31. Bxe2 {[%clk 0:01:55.5]} 31... Nxc3 {[%clk 0:00:57.3]} 32.
Bf3 {[%clk 0:01:52.6]} 32... Ne4 {[%clk 0:00:52.8]} 33. g3 {[%clk 0:01:49.9]}
33... c3 {[%clk 0:00:42.9]} 34. Kg2 {[%clk 0:01:47.6]} 34... c2 {[%clk
0:00:42.8]} 0-1

[Event "Early-Titled-Tuesday-Blitz-February-20-2024"]
[Site "Chess.com"]
[Date "2024.02.20"]
[Round "7"]
[White "stratacticos"]
[Black "bulletteemo"]
[Result "0-1"]
[WhiteElo "1993"]
[BlackElo "2567"]
[TimeControl "180+1"]
[EndTime "9:17:31 PST"]
[Termination "bulletteemo won by resignation"]

1. e4 {[%clk 0:03:00.6]} 1... c5 {[%clk 0:02:58.4]} 2. Nf3 {[%clk 0:02:58.2]}
2... d6 {[%clk 0:02:58.9]} 3. Bb5+ {[%clk 0:02:56.1]} 3... Bd7 {[%clk
0:02:58.8]} 4. Bxd7+ {[%clk 0:02:55.3]} 4... Nxd7 {[%clk 0:02:59.7]} 5. O-O
{[%clk 0:02:54.1]} 5... Ngf6 {[%clk 0:03:00.4]} 6. Nc3 {[%clk 0:02:52.7]} 6...
g6 {[%clk 0:03:00.1]} 7. d4 {[%clk 0:02:52.2]} 7... cxd4 {[%clk 0:03:00.2]} 8.
Nxd4 {[%clk 0:02:37.2]} 8... Bg7 {[%clk 0:02:59.5]} 9. Bg5 {[%clk 0:02:34.6]}
9... O-O {[%clk 0:02:59.6]} 10. Qd2 {[%clk 0:02:33.8]} 10... Rc8 {[%clk
0:02:59.9]} 11. Bh6 {[%clk 0:02:32.3]} 11... a6 {[%clk 0:02:58.8]} 12. Bxg7
{[%clk 0:02:31.3]} 12... Kxg7 {[%clk 0:02:59.7]} 13. Rad1 {[%clk 0:02:28.6]}
13... b5 {[%clk 0:02:59.8]} 14. a3 {[%clk 0:02:25]} 14... Ne5 {[%clk 0:03:00.1]}
15. f4 {[%clk 0:01:49.5]} 15... Nc4 {[%clk 0:03:00.3]} 16. Qc1 {[%clk
0:01:48.8]} 16... Qb6 {[%clk 0:02:56.6]} 17. Kh1 {[%clk 0:01:48.2]} 17... e5
{[%clk 0:02:48.4]} 18. Nf3 {[%clk 0:01:35.8]} 18... Ne3 {[%clk 0:02:45.4]} 19.
fxe5 {[%clk 0:01:30.4]} 19... dxe5 {[%clk 0:02:44.2]} 20. Nxe5 {[%clk
0:01:24.8]} 20... Nxd1 {[%clk 0:02:42.3]} 21. Qxd1 {[%clk 0:01:17.9]} 21... Qe6
{[%clk 0:02:40.6]} 22. Nf3 {[%clk 0:01:09.2]} 22... Rfd8 {[%clk 0:02:27.4]} 23.
Qe2 {[%clk 0:01:04]} 23... h6 {[%clk 0:02:27.5]} 24. h3 {[%clk 0:00:58.9]} 24...
Rc4 {[%clk 0:02:24.8]} 25. Nd2 {[%clk 0:00:50.3]} 25... Rcd4 {[%clk 0:02:23.5]}
26. Nb3 {[%clk 0:00:48.6]} 26... Nxe4 {[%clk 0:02:22.1]} 27. Nxd4 {[%clk
0:00:44.7]} 27... Ng3+ {[%clk 0:02:21.3]} 28. Kh2 {[%clk 0:00:43.9]} 28... Qxe2
{[%clk 0:02:13.2]} 29. Ndxe2 {[%clk 0:00:40.6]} 29... Nxf1+ {[%clk 0:02:13.5]}
30. Kg1 {[%clk 0:00:38.5]} 30... Ne3 {[%clk 0:02:14.4]} 31. Kf2 {[%clk
0:00:20.3]} 31... Nxc2 {[%clk 0:02:14.3]} 32. g4 {[%clk 0:00:15.7]} 32... b4
{[%clk 0:02:13.9]} 33. axb4 {[%clk 0:00:14.9]} 33... Nxb4 {[%clk 0:02:14.8]} 0-1

[Event "Early-Titled-Tuesday-Blitz-February-20-2024"]
[Site "Chess.com"]
[Date "2024.02.20"]
[Round "7"]
[White "ShieldingOff"]
[Black "WiseKing_08"]
[Result "1-0"]
[WhiteElo "2293"]
[BlackElo "2421"]
[TimeControl "180+1"]
[EndTime "9:17:40 PST"]
[Termination "ShieldingOff won by resignation"]

1. d4 {[%clk 0:02:56.5]} 1... d5 {[%clk 0:02:59.5]} 2. c4 {[%clk 0:02:56.2]}
2... c6 {[%clk 0:02:59.6]} 3. Nf3 {[%clk 0:02:55.6]} 3... Nf6 {[%clk 0:02:59.9]}
4. e3 {[%clk 0:02:55.5]} 4... Bf5 {[%clk 0:02:59.8]} 5. Qb3 {[%clk 0:02:54.5]}
5... Qb6 {[%clk 0:02:58.4]} 6. Nc3 {[%clk 0:02:53.7]} 6... e6 {[%clk 0:02:57.6]}
7. c5 {[%clk 0:02:53.7]} 7... Qc7 {[%clk 0:02:56.9]} 8. Be2 {[%clk 0:02:52.1]}
8... Nbd7 {[%clk 0:02:55.9]} 9. O-O {[%clk 0:02:50.4]} 9... h6 {[%clk
0:02:55.8]} 10. a4 {[%clk 0:02:44.4]} 10... g5 {[%clk 0:02:53.5]} 11. a5 {[%clk
0:02:42]} 11... a6 {[%clk 0:02:53.7]} 12. Na4 {[%clk 0:02:31.9]} 12... Be7
{[%clk 0:02:37.2]} 13. Nb6 {[%clk 0:02:31.3]} 13... Nxb6 {[%clk 0:02:30.3]} 14.
axb6 {[%clk 0:02:27.2]} 14... Qb8 {[%clk 0:02:31]} 15. Ne5 {[%clk 0:02:22]}
15... Nd7 {[%clk 0:02:17.5]} 16. f4 {[%clk 0:02:20.1]} 16... f6 {[%clk
0:02:09.4]} 17. Bh5+ {[%clk 0:02:18.8]} 17... Kd8 {[%clk 0:02:00.2]} 18. Nf7+
{[%clk 0:02:18.8]} 18... Ke8 {[%clk 0:01:56.3]} 19. Nxh8+ {[%clk 0:02:17.7]}
19... Kf8 {[%clk 0:01:57.1]} 20. Ng6+ {[%clk 0:02:15.6]} 20... Bxg6 {[%clk
0:01:56.4]} 21. Bxg6 {[%clk 0:02:15.7]} 21... Kg7 {[%clk 0:01:57.3]} 22. Qc2
{[%clk 0:02:09.8]} 22... f5 {[%clk 0:01:51.4]} 23. Bh5 {[%clk 0:02:04.7]} 23...
g4 {[%clk 0:01:50.4]} 24. h3 {[%clk 0:01:54.9]} 24... gxh3 {[%clk 0:01:47.8]}
25. gxh3 {[%clk 0:01:54.1]} 25... Nf6 {[%clk 0:01:46.5]} 26. Qg2+ {[%clk
0:01:52]} 26... Kh8 {[%clk 0:01:43.5]} 27. Qg6 {[%clk 0:01:47.8]} 27... Qf8
{[%clk 0:01:36.8]} 28. Kh2 {[%clk 0:01:40.7]} 1-0

[Event "Early-Titled-Tuesday-Blitz-February-20-2024"]
[Site "Chess.com"]
[Date "2024.02.20"]
[Round "7"]
[White "DKmirl"]
[Black "pedro_nascimento85"]
[Result "1-0"]
[WhiteElo "2312"]
[BlackElo "2127"]
[TimeControl "180+1"]
[EndTime "9:17:41 PST"]
[Termination "DKmirl won by resignation"]

1. d4 {[%clk 0:03:00.9]} 1... d5 {[%clk 0:02:59.6]} 2. Nf3 {[%clk 0:03:00.7]}
2... Nf6 {[%clk 0:02:57.3]} 3. g3 {[%clk 0:03:01.3]} 3... e6 {[%clk 0:02:47.4]}
4. Bg2 {[%clk 0:03:01.7]} 4... Be7 {[%clk 0:02:47.9]} 5. c4 {[%clk 0:03:01.3]}
5... a6 {[%clk 0:02:47.7]} 6. Nc3 {[%clk 0:03:00.5]} 6... dxc4 {[%clk
0:02:42.1]} 7. Ne5 {[%clk 0:02:58.1]} 7... O-O {[%clk 0:02:41]} 8. Nxc4 {[%clk
0:02:39.6]} 8... Nbd7 {[%clk 0:02:34.3]} 9. O-O {[%clk 0:02:32.7]} 9... c5
{[%clk 0:02:33]} 10. Bf4 {[%clk 0:02:08.2]} 10... cxd4 {[%clk 0:02:18.5]} 11.
Qxd4 {[%clk 0:02:02.4]} 11... Nc5 {[%clk 0:02:08.3]} 12. Rfd1 {[%clk 0:01:52.3]}
12... Qxd4 {[%clk 0:02:00.6]} 13. Rxd4 {[%clk 0:01:51.6]} 13... Nh5 {[%clk
0:01:32]} 14. Nb6 {[%clk 0:01:23]} 14... Nxf4 {[%clk 0:01:16.8]} 15. Nxa8 {[%clk
0:01:21.1]} 15... Ng6 {[%clk 0:01:04.4]} 16. Nb6 {[%clk 0:01:17.4]} 16... Bf6
{[%clk 0:00:59.7]} 17. Rd2 {[%clk 0:01:14.4]} 17... e5 {[%clk 0:00:52.2]} 18.
Nxc8 {[%clk 0:01:11.7]} 18... Rxc8 {[%clk 0:00:51.5]} 19. Ne4 {[%clk 0:01:09.7]}
19... Be7 {[%clk 0:00:50.3]} 20. Rc1 {[%clk 0:01:05.4]} 20... f5 {[%clk
0:00:45.7]} 21. Nxc5 {[%clk 0:01:04.8]} 21... Rxc5 {[%clk 0:00:45.7]} 22. Rxc5
{[%clk 0:01:02]} 22... Bxc5 {[%clk 0:00:46.6]} 23. Bxb7 {[%clk 0:01:01.4]} 23...
a5 {[%clk 0:00:45.7]} 1-0